bitfinex-derivatives/quotes_SOLF0:USTF0_20240925
["timestamp","ask_amount","ask_price","bid_price","bid_amount"]
[1727283075640,14.25,151.81,151.75,3.4898]
[1727283075838,3.294,151.79,151.75,3.4898]
[1727283076038,0.98577286,151.78,151.75,3.4898]
[1727283076630,0.98577286,151.78,151.75,6.7844]
[1727283076939,14.25,151.81,151.75,3.4898]
[1727283077139,3.2942,151.78,151.75,3.4898]
[1727283077343,14.25,151.81,151.73,1.6837]
[1727283077647,0.98571488,151.8,151.73,1.6837]
[1727283077846,3.2939,151.79,151.74,3.2947]
[1727283078543,3.2937,151.8,151.74,14.25]
[1727283078738,14.25,151.84,151.75,3.6035]
[1727283078944,3.294,151.79,151.75,3.6035]
[1727283079340,0.98568982,151.78,151.75,3.6035]
[1727283079636,3.294,151.79,151.75,6.8981]
[1727283079839,3.2936,151.8,151.75,3.6035]
[1727283080035,0.98564594,151.79,151.75,3.6035]
[1727283080235,0.98564594,151.79,151.76,14.25]
[1727283080443,14.25,151.84,151.76,14.25]
[1727283080643,3.2935,151.81,151.77,3.2941]
[1727283080843,0.98564561,151.8,151.77,3.2941]
[1727283081047,4.27934561,151.8,151.76,14.25]
[1727283081238,0.98564561,151.79,151.76,14.25]
[1727283081438,0.98564561,151.79,151.75,3.6035]
[1727283081643,0.98564561,151.79,151.76,3.2943]
[1727283081839,3.2936,151.81,151.76,3.2943]
[1727283082050,0.98565428,151.8,151.76,3.2943]
[1727283082454,0.98565428,151.8,151.75,3.6035]
[1727283082648,14.25,151.84,151.75,3.6035]
[1727283082649,0.98565428,151.79,151.75,3.6035]
[1727283082950,3.294,151.79,151.75,6.8981]
[1727283083350,14.25,151.84,151.75,3.6035]
[1727283083654,0.98564719,151.83,151.75,3.6035]
[1727283084547,0.98564719,151.83,151.79,14.25]
[1727283084751,3.21471737,151.86,151.79,14.25]
[1727283084949,111.28320872,151.89,151.75,3.6035]
[1727283084950,0.98547212,151.85,151.8,14.25]
[1727283085149,3.2919,151.88,151.8,14.25]
[1727283085342,0.98534919,151.87,151.81,3.4085]
[1727283085544,0.98534919,151.87,151.83,3.2928]
[1727283086045,3.2919,151.88,151.83,3.2928]
[1727283086247,3.2921,151.87,151.83,3.2928]
[1727283086845,3.2921,151.87,151.82,3.2931]
[1727283087245,3.2924,151.86,151.81,3.4085]
[1727283087444,3.2924,151.86,151.81,6.7017]
[1727283088039,14.25,151.91,151.81,3.4085]
[1727283088245,0.98526888,151.9,151.81,3.4085]
[1727283088749,3.292,151.88,151.82,14.25]
[1727283089141,15.2714,151.93,151.82,14.25]
[1727283089342,3.2918,151.89,151.84,3.2926]
[1727283089748,3.2918,151.89,151.85,3.2925]
[1727283089947,15.2714,151.93,151.82,16.0504]
[1727283090152,0.98516668,151.92,151.82,16.0504]
[1727283090347,3.2914,151.91,151.86,3.2921]
[1727283090855,0.9851658,151.9,151.84,14.25]
[1727283091158,4.2766658,151.9,151.84,14.25]
[1727283091350,3.2915,151.9,151.84,14.25]
[1727283091649,3.2913,151.91,151.86,3.2922]
[1727283092453,3.2913,151.91,151.87,3.2921]
[1727283094949,3.2913,151.91,151.86,17.5422]
[1727283095556,3.2914,151.9,151.86,17.5422]
[1727283095855,3.2914,151.9,151.85,3.2924]
[1727283096455,3.2917,151.89,151.85,3.2924]
[1727283097148,3.2915,151.9,151.85,3.2924]
[1727283097452,0.98496995,151.89,151.86,3.2923]
[1727283097953,3.2913,151.91,151.86,3.2923]
[1727283098154,0.98496974,151.9,151.87,3.2921]
[1727283098355,0.98496974,151.9,151.86,14.25]
[1727283098656,0.98496974,151.9,151.86,17.5421]
[1727283098955,0.98496974,151.9,151.86,14.25]
[1727283099151,0.98496974,151.89,151.86,14.25]
[1727283099357,3.2913,151.91,151.87,3.2919]
[1727283099658,0.98496933,151.9,151.87,3.2919]
[1727283100050,0.98496933,151.9,151.86,17.5422]
[1727283101253,4.27636933,151.9,151.86,17.5422]
[1727283101451,3.2914,151.9,151.86,17.5422]
[1727283101955,14.25,151.95,151.86,14.25]
[1727283102254,0.98492085,151.93,151.84,14.25]
[1727283102455,0.98492085,151.92,151.84,14.25]
[1727283102652,14.25,151.95,151.84,14.25]
[1727283102853,3.2918,151.89,151.85,3.2924]
[1727283103054,17.50032938,151.95,151.85,3.2924]
[1727283103253,0.98496442,151.94,151.85,14.25]
[1727283103858,0.98496442,151.94,151.86,3.2922]
[1727283104361,3.2913,151.91,151.86,3.2922]
[1727283104553,0.98496442,151.9,151.86,3.2922]
[1727283105050,0.98497502,151.89,151.86,3.2922]
[1727283105459,3.2914,151.9,151.86,3.2922]
[1727283106460,17.50032938,151.95,151.85,14.25]
[1727283106654,0.98493014,151.94,151.85,14.25]
[1727283108250,0.98493014,151.94,151.88,14.25]
[1727283108653,3.2909,151.93,151.89,3.6155]
[1727283108850,3.25032938,151.95,151.89,3.6155]
[1727283109056,0.98480298,151.94,151.89,3.6155]
[1727283109259,3.2909,151.93,151.89,3.6155]
[1727283109457,3.26997825,151.94,151.89,3.6155]
[1727283109665,14.25,151.99,151.9,14.25]
[1727283109867,0.98462667,151.98,151.92,14.25]
[1727283110160,3.27920152,152.01,151.94,14.25]
[1727283110463,0.98440657,152.0,151.94,14.25]
[1727283110670,0.98440657,151.99,151.95,3.2903]
[1727283110860,93.29,152.03,151.95,3.2903]
[1727283111167,0.5091,152.05,151.95,3.2903]
[1727283111168,3.2894,152.0,151.95,17.5403]
[1727283111360,6.50892986,152.0,151.95,17.5403]
[1727283112166,6.50892986,152.0,151.96,3.2901]
[1727283112368,6.50892986,152.0,151.95,14.25]
[1727283112557,3.21952986,152.0,151.95,14.25]
[1727283112868,14.25,152.03,151.93,14.25]
[1727283113063,0.98400889,152.02,151.93,14.25]
[1727283113266,3.2896,151.99,151.94,3.2905]
[1727283113664,3.2898,151.98,151.93,14.25]
[1727283114668,3.2898,151.98,151.94,3.2905]
[1727283115177,3.2899,151.97,151.94,3.2905]
[1727283115468,3.25278198,152.0,151.91,14.25]
[1727283115669,14.25,152.01,151.91,14.25]
[1727283115869,0.98422931,152.0,151.93,3.2908]
[1727283116070,17.60110339,152.01,151.93,3.2908]
[1727283116263,3.2897,151.98,151.91,14.25]
[1727283116962,3.2897,151.98,151.93,17.5406]
[1727283117164,3.2897,151.98,151.93,14.25]
[1727283117764,3.2897,151.98,151.94,3.2904]
[1727283118275,3.2895,151.99,151.93,14.25]
[1727283118963,3.2894,152.0,151.96,3.29]
[1727283119163,14.25,152.05,151.95,14.25]
[1727283119472,3.2894,152.0,151.96,8.601]
[1727283119666,3.2894,152.0,151.96,5.311]
[1727283120269,3.2894,152.0,151.96,8.6011]
[1727283120464,3.2891,152.01,151.96,5.311]
[1727283120675,14.25,152.05,151.96,5.311]
[1727283120874,0.9840543,152.04,151.97,14.25]
[1727283121067,3.2887,152.03,151.97,14.25]
[1727283121869,3.2884,152.04,151.99,3.2893]
[1727283122070,96.40650242,152.06,151.99,3.2893]
[1727283122277,0.98392143,152.05,151.99,3.2893]
[1727283122474,14.25,152.03,151.96,5.311]
[1727283122677,14.25,152.01,151.9,14.25]
[1727283122982,17.59737673,152.01,151.9,14.25]
[1727283123478,17.59737673,152.01,151.92,14.25]
[1727283123777,3.2896,151.99,151.94,3.2904]
[1727283123971,6.63928073,151.99,151.94,3.2904]
[1727283124186,3.2896,151.99,151.94,3.2904]
[1727283124474,3.2896,151.99,151.95,3.2903]
[1727283124877,14.25,152.03,151.94,14.25]
[1727283125079,14.25,152.05,151.96,14.25]
[1727283125378,3.2889,152.02,151.96,14.25]
[1727283125568,14.25,152.05,151.98,3.2895]
[1727283125977,3.2888,152.03,151.98,3.2895]
[1727283126383,96.40650242,152.06,151.98,14.25]
[1727283126680,3.2882,152.05,151.98,14.25]
[1727283126880,3.2882,152.05,152.0,14.25]
[1727283127272,17.52108036,152.09,152.02,3.2887]
[1727283127577,15.23374271,152.08,151.99,1.7016]
[1727283127781,3.2888,152.03,151.99,1.7016]
[1727283128375,3.2883,152.05,151.99,1.7016]
[1727283129177,3.2883,152.05,152.0,3.2892]
[1727283129880,3.2884,152.04,151.99,4.991]
[1727283130076,3.23264807,152.06,151.99,1.7016]
[1727283130379,3.2886,152.04,151.99,4.9911]
[1727283130781,3.28473639,152.05,151.99,1.7016]
[1727283130974,14.25,152.08,151.99,1.7016]
[1727283131174,14.25,152.06,151.97,16.0268]
[1727283131475,3.2893,152.0,151.97,1.7768]
[1727283131674,3.34496149,152.02,151.97,1.7768]
[1727283131873,14.25,152.06,151.97,1.7768]
[1727283132077,0.98389691,152.05,151.97,1.7768]
[1727283132277,14.25,152.03,151.97,1.7768]
[1727283132476,3.2892,152.01,151.97,1.7768]
[1727283133170,3.2893,152.0,151.97,3001.7768]
[1727283134474,3.2891,152.01,151.97,3005.0667]
[1727283134678,14.25,152.06,151.97,3005.0667]
[1727283134874,0.98395416,152.05,151.97,3005.0667]
[1727283135075,3.2889,152.02,151.97,3005.0667]
[1727283136079,14.25,152.08,151.97,3016.0268]
[1727283136279,0.98382472,152.07,151.97,3016.0268]
[1727283136480,3.2887,152.03,151.98,3.2895]
[1727283136680,3.2887,152.03,151.97,3016.0268]
[1727283137275,3.30799104,152.03,151.97,3016.0268]
[1727283137578,0.9839155,152.02,151.97,3001.7768]
[1727283137780,3.2894,152.0,151.97,3001.7768]
[1727283138081,14.25,152.02,151.97,3000.0]
[1727283138270,0.98408495,152.01,151.97,3000.0]
[1727283138476,3.2897,151.98,151.97,3000.0]
[1727283139285,4.27393489,151.98,151.97,3000.0]
[1727283139482,0.98423489,151.98,151.97,3000.0]
[1727283140281,4.27393489,151.98,151.97,3000.0]
[1727283140582,4.27391235,151.98,151.97,3000.0]
[1727283142383,0.98421235,151.98,151.97,3000.0]
[1727283142882,4.27391235,151.98,151.97,3000.0]
[1727283143077,3.2897,151.98,151.97,3000.0]
[1727283145483,3.2895,151.99,151.97,3000.0]
[1727283145683,3.26685097,152.02,151.97,3000.0]
[1727283145883,0.98420147,152.01,151.97,3000.0]
[1727283146085,3.2893,152.0,151.97,3000.0]
[1727283149393,3.2895,151.99,151.97,3000.0]
[1727283152196,3.2895,151.99,151.94,3.2904]
[1727283152496,14.25,152.01,151.92,1.8397]
[1727283152695,0.98417998,152.0,151.92,1.8397]
[1727283152891,3.2898,151.98,151.93,3.2906]
[1727283153700,3.29,151.97,151.93,3.2906]
[1727283153901,14.25,151.99,151.92,1.8397]
[1727283154300,3.2903,151.95,151.92,1.8397]
[1727283154690,14.25,151.97,151.92,1.8397]
[1727283156194,3.2906,151.94,151.92,1.8397]
[1727283156397,14.25,151.95,151.87,14.25]
[1727283156592,14.25,151.95,151.87,15.956]
[1727283156894,14.25,151.95,151.88,3.2918]
[1727283157097,0.98458875,151.94,151.88,3.2918]
[1727283157292,6.53214315,151.93,151.88,3.2918]
[1727283157489,3.24114315,151.93,151.88,3.2918]
[1727283157702,14.25,151.95,151.87,1.706]
[1727283157903,3.2913,151.91,151.87,1.706]
[1727283158091,3.35868563,151.92,151.87,4.998]
[1727283158291,3.2911,151.92,151.87,4.998]
[1727283158498,3.28922246,152.01,151.87,15.956]
[1727283158499,14.25,151.97,151.87,15.956]
[1727283158699,0.98465443,151.96,151.9,3.2913]
[1727283159196,3.2907,151.94,151.89,3.2915]
[1727283159396,3.2907,151.94,151.87,15.956]
[1727283159796,3.2907,151.94,151.89,3.2916]
[1727283161498,3.2907,151.94,151.9,3.2914]
[1727283161694,14.25,151.99,151.89,14.25]
[1727283161899,0.98449534,151.98,151.9,1.8148]
[1727283162099,3.23289804,151.97,151.9,1.8148]
[1727283162300,3.2904,151.95,151.91,4.9713]
[1727283162696,6.5781,152.02,151.91,4.9713]
[1727283162897,3.2903,151.96,151.91,4.9713]
[1727283164802,3.2903,151.96,151.92,3.291]
[1727283167203,3.2903,151.96,151.91,4.9713]
[1727283168698,14.25,151.97,151.91,1.6802]
[1727283169200,3.2907,151.94,151.91,1.6802]
[1727283169902,3.2905,151.95,151.91,1.6802]
[1727283170507,3.2902,151.96,151.91,4.9712]
[1727283170708,14.25,152.0,151.91,15.9302]
[1727283170903,0.98438945,151.99,151.91,15.9302]
[1727283171107,3.2899,151.97,151.93,3.2907]
[1727283171303,14.25,152.0,151.91,15.9302]
[1727283171509,3.2894,152.0,151.95,3.2902]
[1727283171709,3.2894,152.0,151.93,14.25]
[1727283171907,3.2894,152.0,151.94,1.7107]
[1727283172210,3.2894,152.0,151.95,3.2901]
[1727283173311,3.2894,152.0,151.96,3.29]
[1727283174012,3.23004478,152.02,151.97,14.25]
[1727283174204,14.25,152.07,151.98,1.8059]
[1727283174404,0.98405399,152.06,151.98,1.8059]
[1727283175511,3.2887,152.03,151.98,5.0955]
[1727283175712,6.55575293,152.03,151.98,5.0955]
[1727283176004,3.2889,152.02,151.98,5.0955]
[1727283176206,14.25,152.04,151.98,1.8059]
[1727283176512,0.98407742,152.03,151.98,1.8059]
[1727283176706,4.27890364,152.03,151.98,1.8059]
[1727283177010,3.2892,152.01,151.98,1.8059]
[1727283177408,3.3201685,152.03,151.96,3.29]
[1727283177604,0.98412253,152.02,151.96,3.29]
[1727283177806,0.98412253,152.01,151.96,3.29]
[1727283178002,3.2893,152.0,151.96,3.29]
[1727283178402,3.2893,152.0,151.95,14.25]
[1727283179006,3.2894,152.0,151.95,14.25]
[1727283179308,14.25,152.04,151.95,14.25]
[1727283179512,0.98413726,152.03,151.94,1.7107]
[1727283179812,4.30825013,152.03,151.94,1.7107]
[1727283180012,0.98413726,152.02,151.94,1.7107]
[1727283180216,0.98413726,152.01,151.94,1.7107]
[1727283180412,3.2893,152.0,151.96,3.29]
[1727283180612,14.25,152.04,151.96,3.29]
[1727283180813,0.98414454,152.03,151.96,3.29]
[1727283181012,4.26250519,152.03,151.95,14.25]
[1727283181206,14.25,152.06,151.96,1.7334]
[1727283181411,0.98408197,152.05,151.96,1.7334]
[1727283181613,3.2888,152.03,151.98,3.2896]
[1727283181817,3.23688741,152.02,151.98,3.2896]
[1727283182010,3.2892,152.01,151.97,1.7927]
[1727283182221,6.53892437,152.01,151.97,1.7927]
[1727283185714,6.53892437,152.01,151.97,5.0826]
[1727283186318,3.289,152.02,151.97,5.0826]
[1727283186514,3.289,152.02,151.98,3.2896]
[1727283188614,3.289,152.02,151.97,5.0825]
[1727283189720,3.22876892,152.03,151.97,5.0825]
[1727283189721,3.289,152.01,151.97,5.0825]
[1727283192424,3.289,152.01,151.97,14.1825]
[1727283193514,3.289,152.02,151.98,12.3896]
[1727283193923,9.1,152.02,151.97,1.7927]
[1727283194225,9.1,151.99,151.94,10.8107]
[1727283194425,9.1,151.97,151.94,1.7107]
[1727283194734,3.2901,151.96,151.92,3.2909]
[1727283194934,12.31066491,151.97,151.91,9.1]
[1727283195426,9.1,151.96,151.91,9.1]
[1727283196029,3.2906,151.94,151.9,15.889]
[1727283196225,9.1,151.96,151.9,15.889]
[1727283197226,3.2905,151.95,151.9,15.889]
[1727283197420,9.1,151.96,151.9,15.889]
[1727283197630,3.2906,151.94,151.9,15.889]
[1727283198029,9.1,151.96,151.91,3.2912]
[1727283198924,3.2904,151.95,151.91,3.2912]
[1727283201420,9.1,151.96,151.92,3.291]
[1727283201421,3.2903,151.96,151.92,3.291]
[1727283201626,9.1,151.95,151.9,12.5978]
[1727283202227,12.3903,151.95,151.91,3.2911]
[1727283203329,12.31066491,151.97,151.92,9.1]
[1727283203524,9.1,151.97,151.92,9.1]
[1727283203941,9.1,151.96,151.91,9.1]
[1727283204137,9.1,151.95,151.9,3.4978]
[1727283204334,12.391,151.92,151.88,3.2918]
[1727283205636,12.391,151.92,151.89,3.2916]
[1727283206135,3.2912,151.91,151.87,1.7573]
[1727283206330,3.2912,151.91,151.88,3.2917]
[1727283206736,3.2912,151.91,151.87,1.7573]
[1727283206928,3.2912,151.91,151.88,3.2918]
[1727283207133,3.2912,151.91,151.87,10.8573]
[1727283207936,3.2912,151.91,151.88,3.2918]
[1727283209032,3.2912,151.91,151.89,3.2916]
[1727283210137,3.3249885,151.95,151.9,3.2914]
[1727283210338,9.1,151.95,151.9,12.3914]
[1727283210541,12.40731594,151.95,151.9,9.1]
[1727283210739,3.2908,151.94,151.91,3.2912]
[1727283211042,12.40731594,151.95,151.89,9.1]
[1727283211542,9.1,151.95,151.9,9.1]
[1727283211738,9.1,151.96,151.9,9.1]
[1727283211940,12.3903,151.96,151.92,9.1]
[1727283212239,1.5211,152.0,151.92,9.1]
[1727283212540,9.1,151.96,151.93,3.2907]
[1727283212941,9.1,151.96,151.88,1.7763]
[1727283213241,12.3903,151.96,151.91,3.2911]
[1727283214835,9.1,151.95,151.91,3.2911]
[1727283215737,9.1,151.95,151.92,3.291]
[1727283216232,9.1,151.96,151.9,9.1]
[1727283216431,12.39,151.97,151.92,9.1]
[1727283216938,9.1,151.97,151.93,9.1]
[1727283217139,9.1,151.97,151.88,1.7763]
[1727283217140,79.5276,152.05,151.96,9.1]
[1727283217442,9.1,152.01,151.95,9.1]
[1727283217642,12.44968719,152.01,151.95,9.1]
[1727283217943,12.44968719,152.01,151.95,12.3902]
[1727283218944,3.2894,152.0,151.95,12.3902]
[1727283220342,19.75,152.16,151.99,9.1]
[1727283220539,9.1,152.05,151.99,9.1]
[1727283220937,3.2885,152.04,151.99,12.3893]
[1727283221138,9.1,152.05,151.99,12.3893]
[1727283221340,9.1,152.04,151.99,12.3893]
[1727283221537,6.51309441,152.03,151.98,3.2896]
[1727283221739,3.22439441,152.03,151.98,3.2896]
[1727283221941,12.32439441,152.03,151.98,3.2896]
[1727283222141,9.1,152.03,151.98,12.3896]
[1727283222536,12.3887,152.03,151.98,12.3896]
[1727283222839,6.62466629,152.03,151.99,9.1]
[1727283223238,3.2888,152.02,151.99,9.1]
[1727283223444,9.1,152.01,151.94,1.744]
[1727283223648,9.1,151.96,151.93,1.737]
[1727283224046,9.1,151.96,151.92,1.6801]
[1727283224740,3.2903,151.96,151.92,14.0711]
[1727283224945,9.1,151.97,151.92,14.0711]
[1727283225244,12.36517845,151.97,151.92,14.0711]
[1727283225446,9.1,151.95,151.92,1.6801]
[1727283225746,9.1,151.94,151.9,9.1]
[1727283225952,12.3906,151.94,151.89,14.1818]
[1727283226446,3.33925984,151.95,151.89,1.7903]
[1727283226641,3.2904,151.95,151.89,1.7903]
[1727283227143,6.60266129,151.95,151.91,3.2912]
[1727283228442,6.60266129,151.95,151.9,3.2913]
[1727283228845,3.2906,151.94,151.9,3.2913]
[1727283231242,6.60266129,151.95,151.89,1.7903]
[1727283231447,3.2904,151.95,151.89,16.0303]
[1727283231648,3.2904,151.95,151.9,1.8383]
[1727283232247,3.2904,151.95,151.91,3.291]
[1727283232456,3.2904,151.95,151.9,1.8383]
[1727283232947,3.2902,151.96,151.9,1.8383]
[1727283233151,3.2902,151.96,151.91,14.24]
[1727283233855,3.2902,151.96,151.93,3.2907]
[1727283234050,3.29,151.97,151.93,3.2907]
[1727283234648,14.24,152.0,151.91,14.24]
[1727283235049,17.60383875,152.0,151.92,14.24]
[1727283236054,3.2896,151.99,151.94,3.2905]
[1727283236457,14.24,152.02,151.96,3.29]
[1727283236755,17.5156026,152.02,151.96,3.29]
[1727283236954,17.5156026,152.02,151.92,14.24]
[1727283237155,3.2896,151.99,151.92,14.24]
[1727283237554,17.5156026,152.02,151.94,14.24]
[1727283238454,3.2892,152.01,151.97,3.2898]
[1727283239153,3.2893,152.0,151.97,3.2898]
[1727283240953,3.2891,152.01,151.97,3.2898]
[1727283241563,3.2891,152.01,151.96,3.29]
[1727283241856,3.2891,152.01,151.94,14.24]
[1727283241857,17.5156026,152.02,151.95,3.2902]
[1727283242054,17.5156026,152.02,151.92,14.24]
[1727283242263,3.2898,151.98,151.92,14.24]
[1727283242462,17.5156026,152.02,151.95,3.2903]
[1727283242960,3.2894,152.0,151.95,3.2903]
[1727283243159,3.2894,152.0,151.96,3.2901]
[1727283243561,3.2891,152.01,151.94,14.24]
[1727283243760,3.2891,152.01,151.97,3.2898]
[1727283243963,96.42532613,152.04,151.96,14.24]
[1727283244155,96.42532613,152.04,151.96,15.9327]
[1727283244156,99.71382613,152.04,151.96,15.9327]
[1727283244659,96.42532613,152.04,151.96,17.7757]
[1727283244858,3.2887,152.03,151.99,3.2894]
[1727283246255,3.2887,152.03,151.99,12.3894]
[1727283247458,6.49883251,152.03,151.99,12.3894]
[1727283249763,3.2887,152.03,151.99,12.3894]
[1727283250063,12.3885,152.04,151.99,12.3894]
[1727283250460,12.3885,152.04,152.0,3.2892]
[1727283251058,6.51661474,152.03,151.99,12.3894]
[1727283251454,6.51661474,152.03,151.96,3.5357]
[1727283251653,6.51661474,152.03,151.99,9.1]
[1727283252461,12.3885,152.04,152.0,9.1]
[1727283253058,12.3885,152.04,152.0,12.3892]
[1727283253867,1.5206,152.1,152.03,9.1]
[1727283254159,9.1,152.08,152.03,9.1]
[1727283254366,3.2879,152.07,152.04,9.1]
[1727283254665,3.2879,152.07,152.03,12.3885]
[1727283254859,3.2874,152.09,152.04,9.1]
[1727283255064,9.1,152.09,152.04,9.1]
[1727283255259,9.1,152.09,152.03,3.2885]
[1727283255468,3.2877,152.08,152.03,9.1]
[1727283256367,3.2877,152.08,152.04,3.2883]
[1727283257663,3.2879,152.07,152.03,9.1]
[1727283257964,9.1,152.07,152.02,9.1]
[1727283258168,9.1,152.07,151.96,3.5357]
[1727283258358,9.1,152.05,152.01,9.1]
[1727283258560,12.41962358,152.05,152.01,9.1]
[1727283258862,15.70792358,152.05,152.01,12.3889]
[1727283259363,3.2885,152.04,152.0,9.1]
[1727283259669,3.31962358,152.05,152.02,9.1]
[1727283259962,15.72604011,152.06,152.02,12.3887]
[1727283260361,3.2883,152.05,152.02,9.1]
[1727283260664,9.1,152.03,151.99,9.1]
[1727283261163,12.3887,152.03,151.96,3.5357]
[1727283261366,15.71446505,152.03,151.99,9.1]
[1727283261659,12.42576505,152.03,151.99,9.1]
[1727283261860,96.37700456,152.11,152.0,9.1]
[1727283261861,12.3885,152.04,152.0,9.1]
[1727283262061,9.1,152.04,151.96,3.5357]
[1727283262256,9.1,152.04,151.99,9.1]
[1727283262666,3.29779532,152.03,151.99,9.1]
[1727283263465,9.1,152.04,151.99,9.1]
[1727283263662,12.3885,152.04,152.0,9.1]
[1727283264363,9.1,152.04,152.01,3.2889]
[1727283266163,9.1,152.04,152.02,3.2887]
[1727283267867,9.1,152.03,151.96,3.5357]
[1727283268071,9.1,152.03,151.99,9.1]
[1727283268468,12.3888,152.03,151.99,12.3894]
[1727283268870,9.1,152.0,151.96,4.9827]
[1727283269167,9.1,151.97,151.91,62.7060239]
[1727283269465,9.1,151.96,151.91,71.8060239]
[1727283270172,12.45495127,151.96,151.91,71.8060239]
[1727283270361,15.74515127,151.96,151.93,3.2908]
[1727283271967,15.74515127,151.96,151.92,3.2909]
[1727283272767,9.1,151.97,151.93,9.1]
[1727283273169,9.1,151.97,151.91,9.1]
[1727283273564,12.39,151.97,151.93,3.2906]
[1727283273962,6.62550452,151.96,151.92,3.2909]
[1727283274164,9.1,151.95,151.92,3.2909]
[1727283276878,9.1,151.95,151.93,3.2908]
[1727283277266,9.1,151.96,151.91,9.1]
[1727283277468,9.1,151.97,151.93,9.1]
[1727283277676,9.1,151.97,151.92,9.1]
[1727283277874,9.1,151.97,151.92,3.2909]
[1727283277875,9.1,151.95,151.92,3.2909]
[1727283278075,9.1,151.95,151.91,9.1]
[1727283278474,9.1,151.95,151.92,3.2909]
[1727283279680,9.1,151.95,151.93,3.2907]
[1727283280879,9.1,151.95,151.9,5.3398]
[1727283280880,9.1,151.94,151.9,3.5588]
[1727283281468,3.2904,151.95,151.92,3.291]
[1727283281872,3.2901,151.97,151.94,3.2904]
[1727283282077,9.1,151.97,151.92,9.1]
[1727283282581,9.1,151.96,151.93,3.2907]
[1727283282977,12.3436615,151.96,151.93,3.2907]
[1727283283178,9.1,151.96,151.93,3.2907]
[1727283283378,9.1,151.96,151.94,3.2905]
[1727283283574,12.3898,151.98,151.94,3.2905]
[1727283285786,9.1,151.96,151.93,3.2907]
[1727283285971,12.33444767,151.96,151.93,3.2907]
[1727283287083,9.1,151.96,151.93,3.2907]
[1727283287490,12.43980428,151.96,151.93,3.2907]
[1727283288095,9.1,151.96,151.93,3.2907]
[1727283288391,3.29766163,151.96,151.93,3.2907]
[1727283288597,12.3898,151.98,151.93,9.1]
[1727283288990,12.3898,151.98,151.94,3.2904]
[1727283289785,12.3898,151.98,151.93,9.1]
[1727283289997,9.1,151.98,151.92,9.1]
[1727283292001,9.1,151.98,151.93,9.1]
[1727283292896,9.1,151.99,151.93,9.1]
[1727283293700,12.3895,151.99,151.95,3.2902]
[1727283293890,4.24998096,152.04,151.95,9.1]
[1727283294089,9.1,152.02,151.96,9.1]
[1727283294788,12.43354873,152.02,151.96,9.1]
[1727283295093,3.2891,152.01,151.97,3.2898]
[1727283295997,9.1,151.99,151.95,3.2902]
[1727283296195,3.33354873,152.02,151.9,3.5588]
[1727283296196,9.1,151.97,151.92,9.1]
[1727283296389,12.3899,151.97,151.93,3.2907]
[1727283296593,12.3899,151.97,151.92,9.1]
[1727283296794,9.1,151.95,151.9,12.6588]
[1727283296990,9.1,151.94,151.91,3.291]
[1727283298195,9.1,151.94,151.9,3.5588]
[1727283298196,9.1,151.94,151.86,1.7777]
[1727283298394,9.1,151.91,151.86,10.8777]
[1727283298594,9.1,151.89,151.85,3.4914]
[1727283298803,12.3916,151.89,151.85,6.7838]
[1727283300098,6.54889094,151.9,151.86,3.2922]
[1727283300296,14.23,151.92,151.85,3.4914]